Cogmind - Beta 17.1 @@@ ROGUE MODE // 2026.09.16 @ 23:19:08 Player: stixxx Result: Destroyed by G-34 Mercenary with Small Laser Performance ------------- Evolutions (1) 500 Regions Visited (2) 400 Robots Destroyed (8) 40 Value Destroyed (228) 228 Prototype IDs (0) 0 Alien Tech Used (0) 0 Bonus (0) 0 TOTAL SCORE: 1168 Bonus ------- None Cogmind --------- Core Integrity 0/400 Matter 300/300 Energy 99/100 System Corruption 0% Temperature Cool (6) Movement Core (100) Ox1 Location -9/Materials Parts ------- > --- POWER (1) -------- (None) > --- PROPULSION (2) --- (None) > --- UTILITY (2) ------ Small Storage Unit > --- WEAPON (4) ------- (None) > --- INVENTORY (8) ---- Ion Engine Aluminum Leg Wheel Wheel Peak State ------------ > --- POWER ------------ Light Nuclear Core > --- PROPULSION ------- Aluminum Leg Aluminum Leg > --- UTILITY ---------- Heat Sink Small Storage Unit > --- WEAPON ----------- Light Assault Rifle > --- INVENTORY -------- Ion Engine Aluminum Leg Wheel Wheel [Rating: 8] Favorites ----------- Power Ion Engine Engine Ion Engine Power Core Light Nuclear Core Propulsion Aluminum Leg Leg Aluminum Leg Utility Small Storage Unit Device Heat Sink Storage Small Storage Unit Weapon Light Assault Rifle Energy Gun EM Pulse Gun Ballistic Gun Light Assault Rifle Build | -11 -10 -9 ------- Run | Yrd Mat Mat Slots Evolved 2 | . . 2 Power . | . . . Propulsion . | . . . Utility . | . . . Weapon 2 | . . 2 Parts Attached 9 | 6 3 . Power 2 | 1 1 . Engine 1 | 1 . . Core 1 | . 1 . Reactor . | . . . Propulsion 3 | 2 1 . Treads . | . . . Leg 3 | 2 1 . Wheel . | . . . Hover . | . . . Flight . | . . . Utility 2 | 1 1 . Device 1 | . 1 . Storage 1 | 1 . . Processor . | . . . Hackware . | . . . Protection . | . . . Artifact . | . . . Weapon 2 | 2 . . Energy Gun 1 | 1 . . Energy Cannon . | . . . Ballistic Gun 1 | 1 . . Ballistic Cannon . | . . . Launcher . | . . . Special Weapon . | . . . Impact Weapon . | . . . Slashing Weapon . | . . . Piercing Weapon . | . . . Special Melee Weapon . | . . . Unidentified Prototypes . | . . . Parts Lost 8 | . 3 5 Power 2 | . 1 1 Propulsion 3 | . 1 2 Utility 1 | . . 1 Weapon 2 | . 1 1 Highest Loss Streak 5 | . 2 5 To Critical Strikes . | . . . Average Backups 3 | 2 3 4 Power . | . 1 1 Propulsion 2 | 1 2 3 Utility . | . . . Weapon . | . . . Tool/Special . | . . . Unused Backups 5 | 1 . 4 Power 1 | . . 1 Propulsion 4 | 1 . 3 Utility . | . . . Weapon . | . . . Tool/Special . | . . . Average Slot Usage (%) 72 | . 80 49 Engine 7 | . 9 . Core 4 | . 4 7 Leg 23 | . 25 15 Device 4 | . 3 6 Storage 13 | . 14 11 Energy Gun 5 | . 7 . Ballistic Gun 12 | . 14 9 Peak Build Rating 8 | 6 8 8 Average Rating 5 | 4 6 5 On Entrance 4 | . 6 8 Avg Prop Armor Cover (%) . | . . . Naked Turns . | . . . Heaviest Build 13 | 13 13 12 Greatest Support 20 | 20 20 20 Greatest Overweight (x) 1 | 1 1 1 Average Overweight (x) . | . . . Largest Inventory Capacity 8 | 8 8 8 Average Capacity 7 | 5 8 8 Most Carried 4 | 3 4 4 Average Carried 3 | 2 3 4 Final Capacity 8 | 8 8 8 Final Carried 4 | 3 4 4 Class Distribution -------------------- 100% | Mutant Dominant Class ---------------- Mutant | -10/Materials Mutant | -9/Materials Resources | -11 -10 -9 ----------- Run | Yrd Mat Mat Matter Collected 307 | 260 47 . Remotely . | . . . Salvage Created 267 | . 267 . Parts 16 | . 16 . Haulers Intercepted . | . . . Recyclers Shooed . | . . . Parts Field Recycled . | . . . Retrieved Matter . | . . . Parts Self-Destructed . | . . . Prevented . | . . . Parts Restored . | . . . Kills | -11 -10 -9 ------- Run | Yrd Mat Mat Combat Hostiles Destroyed 7 | . 7 . Guns 7 | . 7 . Classes Destroyed 3 | . 3 . Watcher 1 | . 1 . Swarmer 3 | . 3 . Grunt 4 | . 4 . Best Kill Streak 3 | . 3 . Combat Bots Only 3 | . 3 . Max Kills in Single Turn 1 | . 1 . Gunslinging . | . . . Exploded . | . . . Melee . | . . . Uniques/NPCs Destroyed . | . . . Combat | -11 -10 -9 -------- Run | Yrd Mat Mat Hostile Shots Fired 177 | . 62 115 Missed 57 | . 19 38 Hits 120 | . 43 77 Projectile 120 | . 43 77 Critical Strikes 2 | . 2 . Damage Taken 1200 | . 513 687 Core 596 | . 194 402 Absorbed by Shields . | . . . Core Remaining (%) 61 | 100 22 . Volleys Fired 50 | . 38 12 Largest 2 | . 2 1 Hottest 60 | . 60 20 Shots Fired 71 | . 59 12 Gun 71 | . 59 12 Cannon . | . . . Launcher . | . . . Special . | . . . Kinetic 50 | . 38 12 Thermal . | . . . Explosive . | . . . Electromagnetic 21 | . 21 . Robot Hit Streak 11 | . 10 11 Robot Miss Streak 5 | . 5 2 Penetration Max . | . . . Secondary Targets . | . . . Shots Hit Robots 35 | . 31 4 Core Hits 20 | . 18 2 Critical Kills . | . . . Critical Parts Destroyed 1 | . . 1 Critical Strikes 1 | . . 1 Destroy 1 | . . 1 Melee Attacks . | . . . Impact . | . . . Slashing . | . . . Piercing . | . . . Sneak Attacks . | . . . Combat Hostiles . | . . . Follow-up Attacks . | . . . Damage Inflicted 378 | . 325 53 Guns 363 | . 325 38 Cannons . | . . . Explosions . | . . . Melee . | . . . Ramming 15 | . . 15 Kinetic 222 | . 184 38 Thermal . | . . . Explosive . | . . . Electromagnetic 141 | . 141 . Impact . | . . . Slashing . | . . . Piercing . | . . . Highest Corruption . | . . . Average Corruption . | . . . Corruption Purged . | . . . Corruption Blocked . | . . . Overload Shots . | . . . Overflow Damage . | . . . Projectiles . | . . . Explosions . | . . . Melee . | . . . Knockbacks . | . . . Impact . | . . . Kinetic . | . . . Secondary . | . . . Self-Inflicted Damage 4 | . . 4 Shots . | . . . Rammed 3 | . . 3 Targets Rammed 5 | . . 5 Kicked 2 | . . 2 Crushed . | . . . Highest Temperature 144 | . 144 . Average Temperature 51 | . 51 . Received Heat Transfer 411 | . 267 144 Siege Activations . | . . . Martial Activations . | . . . Shielding Activations . | . . . Robots Disrupted . | . . . Combat Hostiles . | . . . Robots Corrupted . | . . . Combat Hostiles . | . . . Parts Fried 1 | . 1 . Impact Corruptions . | . . . Robots Melted . | . . . Combat Hostiles . | . . . Parts Melted . | . . . Heat Transferred . | . . . Parts Sabotaged . | . . . Parts Stolen . | . . . Parts Stripped . | . . . Power Chain Reactions . | . . . Alert | -11 -10 -9 ------- Run | Yrd Mat Mat Maximum Alert Level . | . . . Low Security (%) 100 | 100 100 100 Level 1 . | . . . Level 2 . | . . . Level 3 . | . . . Level 4 . | . . . Level 5 . | . . . High Security . | . . . Max Security . | . . . Peak Influence 87 | . 87 11 Initial 11 | . . 11 Average 21 | . 34 2 Influence Increases 223 | . 215 8 Destroy 0b10 Robot/C 140 | . 140 . Destroy 0b10 Robot/NC 5 | . 5 . Destroy Leader 32 | . 32 . Successful Hack 16 | . 8 8 Disable Machine 30 | . 30 . Influence Decreases 223 | . 188 35 Entered New Map 16 | . . 16 Time Decay 177 | . 158 19 Lost Part 30 | . 30 . Squads Dispatched . | . . . Investigation . | . . . Extermination . | . . . Reinforcement . | . . . Assault . | . . . Garrison . | . . . Intercept . | . . . Searches Triggered . | . . . Construction Impeded . | . . . Haulers Reinforced . | . . . Active Scanning Responses . | . . . Cargo Convoy Interrupts . | . . . Stealth | -11 -10 -9 --------- Run | Yrd Mat Mat Distress Signals . | . . . Communications Jammed . | . . . Distress Signals . | . . . Times Spotted 27 | . 13 14 Peak Tracking Total 13 | . 4 13 Tactical Retreats . | . . . Traps | -11 -10 -9 ------- Run | Yrd Mat Mat Traps Triggered 1 | . 1 . Indirectly . | . . . Trap Hack Attempts . | . . . Triggered . | . . . Disarmed . | . . . Reprogrammed . | . . . Reused . | . . . Traps Extracted . | . . . Installed . | . . . Triggered . | . . . Machines | -11 -10 -9 ---------- Run | Yrd Mat Mat Machines Disabled 2 | . 2 . Max in Single Turn 1 | . 1 . Machines Repaired . | . . . Machines Dismantled . | . . . Machines Sabotaged . | . . . Overloaded Fab Kills . | . . . Hacking | -11 -10 -9 --------- Run | Yrd Mat Mat Machines Accessed 5 | . 4 1 Terminals 5 | . 4 1 Fabricators . | . . . Repair Stations . | . . . Recycling Units . | . . . Scanalyzers . | . . . Garrison Access . | . . . Total Hacks 18 | . 12 6 Successful 10 | . 6 4 Failed 8 | . 6 2 Catastrophic . | . . . Database Lockouts . | . . . Manual 13 | . 9 4 Terminals 18 | . 12 6 Fabricators . | . . . Repair Stations . | . . . Recycling Units . | . . . Scanalyzers . | . . . Garrison Access . | . . . Terminal Hacks 3 | . 2 1 Terminal Index 1 | . 1 . Alert Level 1 | . . 1 Reinforcement Status 1 | . 1 . Fabricator Hacks . | . . . Repair Station Hacks . | . . . Recycling Unit Hacks . | . . . Scanalyzer . | . . . Garrison Access Hacks . | . . . Unauthorized Hacks 7 | . 4 3 Terminals 7 | . 4 3 Track 2 | . 1 1 Botnet 3 | . 2 1 Skim 2 | . 1 1 Fabricators . | . . . Repair Stations . | . . . Recycling Units . | . . . Scanalyzers . | . . . Garrison Access . | . . . Data Cores Recovered . | . . . Used . | . . . Hacking Detections 4 | . 4 . Full Trace Events . | . . . Feedback Events . | . . . Feedback Blocked . | . . . Robot Schematics Acquired . | . . . Robots Built . | . . . Authchips . | . . . Time . | . . . Total Robot Build Rating . | . . . Part Schematics Acquired . | . . . Parts Built . | . . . Authchips . | . . . Time . | . . . Total Part Build Rating . | . . . Part Studies Acquired . | . . . Parts Repaired . | . . . Time . | . . . Parts Recycled . | . . . Recycled Matter . | . . . Retrieved Matter . | . . . Retrieved Components . | . . . Parts Scanalyzed . | . . . Part Schematics Acquired . | . . . Parts Damaged . | . . . Bothacking | -11 -10 -9 ------------ Run | Yrd Mat Mat Used RIF Installer . | . . . Robots Hacked . | . . . Non-combat . | . . . Combat . | . . . Robot Hacks Applied . | . . . Relay Couplers Released . | . . . Fabnet Peak Effective % . | . . . Robots Rewired . | . . . Allies Hacked . | . . . Hacks Repelled . | . . . Allies | -11 -10 -9 -------- Run | Yrd Mat Mat Total Allies . | . . . Largest Group . | . . . Highest-Rated Group . | . . . Highest-Rated Ally . | . . . Total Orders . | . . . Ally Attacks . | . . . Total Damage . | . . . Kills . | . . . Allies Corrupted . | . . . Allies Melted . | . . . Intel | -11 -10 -9 ------- Run | Yrd Mat Mat Active Infowar (turns) . | . . . Robot Analysis Total . | . . . Derelict Logs Recovered . | . . . Drone Launches . | . . . Drone Recoveries . | . . . Exploration | -11 -10 -9 ------------- Run | Yrd Mat Mat Turns Passed 657 | 130 405 122 Spaces Moved 432 | 100 250 82 Core 42 | 9 . 33 Treads . | . . . Legs 390 | 91 250 49 Wheels . | . . . Hover . | . . . Flight . | . . . Fastest Speed 50 | 50 120 100 Average Speed 120 | 117 123 115 Slowest Speed 190 | 120 190 190 Overloaded Moves . | . . . Propulsion Burnouts . | . . . Robots Hopped . | . . . Potential Cave-ins . | . . . Cave-ins Triggered . | . . . Exploration Rate (%) 21 | 5 44 16 Regions Visited 2 Branch Regions . Pre-discovered Areas . | . . . Known Exits Taken . | . . . Unknown Exits Taken 2 | 1 1 . Scrap Searched . | . . . Spaces Dug . | . . . Terrain Destroyed . | . . . Melee . | . . . Projectile . | . . . AOE . | . . . Terrain Rammed . | . . . Walls Destroyed . | . . . Machines Disabled . | . . . Actions | -11 -10 -9 --------- Run | Yrd Mat Mat Total 502 | 110 292 100 Wait 1 | . . 1 Move 430 | 99 249 82 Hop . | . . . Pick Up 5 | 4 1 . Fast Attach 10 | 6 4 . Attach . | . . . Detach . | . . . Swap . | . . . Drop 1 | 1 . . Fire 50 | . 38 12 Melee . | . . . Ram 3 | . . 3 Kick 2 | . . 2 Crush . | . . . Escape Stasis . | . . . Rewire . | . . . Trap . | . . . Miscellaneous . | . . . Route ------- -11/Scrapyard -10/Materials -9/Materials History --------- Turn | Location | Event 15 | -11/Scrapyard | Discovered new exit (range 16) 131 | -11/Scrapyard | Entered Materials 303 | -10/Materials | Build established: Mutant 368 | -10/Materials | Core integrity fell below 50% 449 | -10/Materials | Discovered new exit (range 16) 536 | -10/Materials | Entered another Materials area 536 | -9/Materials | Evolved 2 slots: Weapon x2 639 | -9/Materials | Core integrity fell below 50% 651 | -9/Materials | Core integrity fell below 20% 658 | -9/Materials | Destroyed by G-34 Mercenary with Small Laser Last Messages --------------- Testing... Tracking enabled and active. >>Trojan(Skim) Trojan loaded successfully. Testing... Terminal linked with 0 systems. Please expand to 4 more systems! Heat Sink destroyed. Aluminum Leg destroyed. Lgt. Nuclear Core destroyed. S-10 Pest suffers critical hit (Destroy). Destroyed Flight Unit. Kicked S-10 Pest. Aluminum Leg destroyed. Slammed into S-10 Pest. Lgt. Assault Rifle broken. Destabilizing: Short circuit. Slammed into S-10 Pest. Broken Lgt. Assault Rifle destroyed. S-10 Pest destroyed. Map ----- +----------------------------------------------------+ | | | | | | | | | | | | | | | | | | | | | | | | | | | | | ???#########????????????????????????????? | | ??# #????????????????????????????? | | ??# #????????????????????????????? | | ??# *** #????????????????????????????? | | ??# ** #????????????????????????????? | | ??#] ** #????????????????????????????? | | ??# #????????????????????????????? | | ??# #????????????####????????????? | | ??# #????????????# #????????????? | | ??# #???????###### #????????????? | | #######+############"T"## +????????????? | | g== @ #????????????? | | g=[ s #????????????? | | ggb""""" #????????????? | | +####### [% """"""""" #????????????? | | ???????# """ """ #????????????? | | ???????# #????????????? | | ???????# g#????????????? | | ???????# #????????????? | | ???????# * "Y" #????????????? | | ???????# """ +????????????? | | ???????# g #????????????? | | ???????# a #????????????? | | ########% ##+??###????????????? | | %+% #???????????????????? | | # #???????????????????? | | # #???????????????????? | | """ + #???????????????????? | | """"" # #???????????????????? | | """"" # ##+###???????????????????? | | """"" + # #???????????????????? | | """ ## + #???????????????????? | | ## # #???????????????????? | | ######### #????????????????????????? | | ????????# #????????????????????????? | | ????????# #????????????????????????? | +----------------------------------------------------+ Best States ------------- Heat Dissipation 38 Energy Generation 14 Energy Capacity 250 Matter Stores 300 Matter Capacity 300 Sight Range 16 Terrain Scan Density 10 Evasion (%) 55 Item Schematics ----------------- None Robot Schematics ------------------ None Fabricated ------------ Nothing Repaired ---------- Nothing Studied --------- None Alien Tech Used ----------------- None Achievements -------------- None Challenges ------------ None Game ------ Seed LauncherPointMask Manual? 0 Play Time 00:10:41 Cumulative 14.3 hours Start 2026.09.16 @ 23:10:28 End 2026.09.16 @ 23:19:08 Sessions 1 Manual Loads 0 Difficulty Rogue Special Mode None Game No. 27 Rogue 27 Adventurer 0 Explorer 0 Win Type - Total 0 Types 0/0/0/0/0/0/0/0/0/0 Lore% 11 Gallery% 13 Achievement% 14 Wizard Run 0 Options --------- Layout 1 ASCII 0 Keyboard 1 Movement Numpad Keybinds 0 Fullscreen 1 Font 24/Smallcaps Map View 50x35 Zoom Use 0% Tactical HUD 0 Map Filters NONE Filters NONE Steam 1 RUN: 22349d33-3fed-4482-bf79-ef59ea559da0